fUST/lending_fUST_20241229
["ID","MTS","AMOUNT","RATE_DAILY","PERIOD"]
[346961721,1735432043164,-500.0,0.00017656,2]
[346961722,1735432043186,-103.99686967,0.00017656,2]
[346961730,1735432213650,2000.0,0.000255,30]
[346961762,1735432232120,-500.0,0.00017656,2]
[346961763,1735432232131,-500.0,0.00017656,2]
[346961764,1735432232140,-371.10640489,0.00017656,2]
[346961770,1735432232230,-128.89359511,0.00017656,2]
[346961772,1735432232239,-500.0,0.00017656,2]
[346961774,1735432232249,-500.0,0.00017656,2]
[346961776,1735432232258,-500.0,0.00017656,2]
[346961778,1735432232267,-500.0,0.00017656,2]
[346961780,1735432232277,-500.0,0.00017656,2]
[346961782,1735432232286,-500.0,0.00017656,2]
[346961784,1735432232296,-500.0,0.00017656,2]
[346961786,1735432232306,-500.0,0.00017656,2]
[346961787,1735432232315,-500.0,0.00017656,2]
[346961788,1735432232326,-500.0,0.00017656,2]
[346961789,1735432232336,-500.0,0.00017656,2]
[346961790,1735432232345,-417.17887762,0.00017656,2]
[346961791,1735432232356,-500.0,0.00017656,2]
[346961792,1735432232365,-1488.54097541,0.00017656,2]
[346961830,1735432240016,-261.56902459,0.00017656,2]
[346961831,1735432240025,-500.0,0.00017656,2]
[346961832,1735432240034,-142.48182998,0.00017656,2]
[346961833,1735432240071,-357.51817002,0.00017656,2]
[346961834,1735432240080,-500.0,0.00017656,2]
[346961835,1735432240089,-439.56197305,0.00017656,2]
[346961836,1735432240101,-60.43802695,0.00017656,2]
[346961837,1735432240110,-300.45212936,0.00017656,2]
[346961844,1735432242967,-605.22787064,0.00017656,2]
[346961845,1735432242977,-500.0,0.00017656,2]
[346961846,1735432242986,-500.0,0.00017656,2]
[346961847,1735432242995,-571.76,0.00017656,2]
[346961848,1735432243006,-1518.08573417,0.00017656,2]
[346961849,1735432243016,-3903.0,0.00017656,2]
[346961850,1735432243069,-882.92927406,0.00017656,2]
[346961860,1735432246100,-7414.67499177,0.00017656,2]
[346961861,1735432246110,-500.0,0.00017656,2]
[346961862,1735432246120,-500.0,0.00017656,2]
[346961863,1735432246129,-500.0,0.00017656,2]
[346961864,1735432246139,-500.0,0.00017656,2]
[346961865,1735432246148,-500.0,0.00017656,2]
[346961866,1735432246157,-1088.92,0.00017656,2]
[346961867,1735432246167,-500.0,0.00017656,2]
[346961868,1735432246176,-500.0,0.00017656,2]
[346961869,1735432246186,-500.0,0.00017656,2]
[346961870,1735432246195,-500.0,0.00017656,2]
[346961871,1735432246204,-500.0,0.00017656,2]
[346961872,1735432246214,-500.0,0.00017656,2]
[346961873,1735432246223,-500.0,0.00017656,2]
[346961874,1735432246232,-500.0,0.00017656,2]
[346961875,1735432246241,-500.0,0.00017656,2]
[346961876,1735432246251,-200.0,0.00017657,2]
[346961877,1735432246260,-500.0,0.00017657,2]
[346961878,1735432246269,-500.0,0.00017657,2]
[346961879,1735432246279,-579.36,0.00017657,2]
[346961880,1735432246288,-500.0,0.00017657,2]
[346961881,1735432246298,-500.0,0.00017657,2]
[346961882,1735432246307,-500.0,0.00017657,2]
[346961883,1735432246316,-500.0,0.00017657,2]
[346961884,1735432246326,-500.0,0.00017657,2]
[346961885,1735432246335,-500.0,0.00017657,2]
[346961886,1735432246345,-500.0,0.00017657,2]
[346961887,1735432246355,-500.0,0.00017657,2]
[346961888,1735432246364,-500.0,0.00017657,2]
[346961889,1735432246374,-500.0,0.00017657,2]
[346961890,1735432246384,-500.0,0.00017657,2]
[346961891,1735432246393,-500.0,0.00017657,2]
[346961892,1735432246403,-500.0,0.00017657,2]
[346961893,1735432246412,-500.0,0.00017657,2]
[346961894,1735432246422,-432.72,0.00017657,2]
[346961895,1735432246431,-460.79,0.00017657,2]
[346961896,1735432246440,-500.0,0.00017657,2]
[346961897,1735432246449,-500.0,0.00017657,2]
[346961898,1735432246459,-500.0,0.00017657,2]
[346961899,1735432246469,-500.0,0.00017657,2]
[346961900,1735432246478,-500.0,0.00017657,2]
[346961901,1735432246487,-500.0,0.00017657,2]
[346961902,1735432246497,-500.0,0.00017657,2]
[346961903,1735432246506,-500.0,0.00017657,2]
[346961904,1735432246516,-500.0,0.00017657,2]
[346961905,1735432246525,-565.18,0.00017657,2]
[346961906,1735432246534,-500.0,0.00017657,2]
[346961907,1735432246544,-500.0,0.00017657,2]
[346961908,1735432246554,-500.0,0.00017658,2]
[346961909,1735432246564,-500.0,0.00017658,2]
[346961910,1735432246573,-538.06483054,0.00017658,2]
[346961911,1735432246583,-502.16890237,0.00017658,2]
[346961912,1735432246592,-525.26755996,0.00017658,2]
[346961913,1735432246601,-500.0,0.00017658,2]
[346961914,1735432246610,-500.0,0.00017658,2]
[346961915,1735432246619,-500.0,0.00017658,2]
[346961916,1735432246629,-150.0,0.00017658,2]
[346961917,1735432246638,-500.0,0.00017658,2]
[346961918,1735432246647,-500.0,0.00017658,2]
[346961919,1735432246657,-500.0,0.00017658,2]
[346961920,1735432246666,-500.0,0.00017658,2]
[346961921,1735432246675,-500.0,0.00017658,2]
[346961922,1735432246688,-500.0,0.00017658,2]
[346961923,1735432246698,-500.0,0.00017659,2]
[346961924,1735432246708,-4644.52,0.00017659,2]
[346961925,1735432246717,-711.69,0.00017659,2]
[346961926,1735432246727,-500.0,0.00017659,2]
[346961927,1735432246737,-4066.47,0.00017659,2]
[346961928,1735432246746,-507.62342226,0.00017659,2]
[346961929,1735432246755,-1036.38138873,0.00017831,2]
[346961930,1735432246765,-500.0,0.00017929,2]
[346961931,1735432246775,-593.04963048,0.00017929,2]
[346961932,1735432246784,-247.88816602,0.00017929,2]
[346961933,1735432246793,-500.0,0.0001793,2]
[346961934,1735432246803,-500.0,0.0001793,2]
[346961935,1735432246812,-500.0,0.0001793,2]
[346961936,1735432246821,-500.0,0.0001793,2]
[346961937,1735432246830,-500.0,0.0001793,2]
[346961938,1735432246839,-500.0,0.0001793,2]
[346961939,1735432246849,-500.0,0.0001793,2]
[346961940,1735432246858,-500.0,0.0001793,2]
[346961941,1735432246868,-500.0,0.0001793,2]
[346961942,1735432246877,-500.0,0.0001793,2]
[346961943,1735432246886,-500.0,0.0001793,2]
[346961944,1735432246896,-500.0,0.0001793,2]
[346961945,1735432246905,-500.0,0.0001793,2]
[346961946,1735432246915,-500.0,0.0001793,2]
[346961947,1735432246924,-500.0,0.0001793,2]
[346961948,1735432246933,-500.0,0.0001793,2]
[346961949,1735432246942,-500.0,0.0001793,2]
[346961950,1735432246954,-500.0,0.0001793,2]
[346961951,1735432246963,-1750.11,0.0001793,2]
[346961952,1735432246973,-500.0,0.0001793,2]
[346961953,1735432246982,-500.0,0.0001793,2]
[346961954,1735432246991,-500.0,0.0001793,2]
[346961955,1735432247000,-500.0,0.0001793,2]
[346961956,1735432247009,-905.68,0.0001793,2]
[346961957,1735432247019,-500.0,0.0001793,2]
[346961958,1735432247028,-500.0,0.0001793,2]
[346961959,1735432247038,-571.76,0.0001793,2]
[346961960,1735432247047,-13718.69,0.0001793,2]
[346961961,1735432247056,-500.0,0.0001793,2]
[346961962,1735432247067,-500.0,0.0001793,2]
[346961963,1735432247076,-500.0,0.0001793,2]
[346961964,1735432247086,-500.0,0.0001793,2]
[346961965,1735432247095,-500.0,0.0001793,2]
[346961966,1735432247104,-1088.92,0.0001793,2]
[346961967,1735432247113,-500.0,0.0001793,2]
[346961968,1735432247122,-500.0,0.0001793,2]
[346961969,1735432247131,-500.0,0.0001793,2]
[346961970,1735432247141,-500.0,0.0001793,2]
[346961971,1735432247150,-500.0,0.0001793,2]
[346961972,1735432247159,-255.00925508,0.0001793,2]
[346961973,1735432247168,-500.0,0.0001793,2]
[346961974,1735432247177,-500.0,0.0001793,2]
[346961975,1735432247186,-500.0,0.00017931,2]
[346961976,1735432247195,-500.0,0.00017931,2]
[346961977,1735432247205,-500.0,0.00017931,2]
[346961978,1735432247215,-500.0,0.00017931,2]
[346961979,1735432247223,-500.0,0.00017931,2]
[346961980,1735432247233,-500.0,0.00017931,2]
[346961981,1735432247241,-315.8,0.00017931,2]
[346961982,1735432247251,-500.0,0.00017931,2]
[346961983,1735432247260,-500.0,0.00017931,2]
[346961984,1735432247269,-500.0,0.00017931,2]
[346961985,1735432247279,-500.0,0.00017931,2]
[346961986,1735432247288,-500.0,0.00017931,2]
[346961987,1735432247297,-500.0,0.00017931,2]
[346961988,1735432247306,-500.0,0.00017931,2]
[346961989,1735432247316,-500.0,0.00017931,2]
[346961990,1735432247326,-500.0,0.00017931,2]
[346961991,1735432247335,-500.0,0.00017931,2]
[346961992,1735432247344,-500.0,0.00017931,2]
[346961993,1735432247354,-500.0,0.00017931,2]
[346961994,1735432247363,-157.26,0.00017931,2]
[346961995,1735432247372,-500.0,0.00017931,2]
[346961996,1735432247382,-565.18,0.00017931,2]
[346961997,1735432247391,-500.0,0.00017931,2]
[346961998,1735432247400,-500.0,0.00017931,2]
[346961999,1735432247410,-500.0,0.00017932,2]
[346962000,1735432247420,-500.0,0.00017932,2]
[346962001,1735432247430,-500.0,0.00017932,2]
[346962002,1735432247439,-500.0,0.00017933,2]
[346962003,1735432247448,-4644.52,0.00017933,2]
[346962004,1735432247459,-711.69,0.00017933,2]
[346962005,1735432247468,-500.0,0.00017933,2]
[346962006,1735432247478,-4066.47,0.00017933,2]
[346962007,1735432247488,-371.50606176,0.00017989,2]
[346962008,1735432247497,-500.0,0.00018204,2]
[346962009,1735432247508,-500.0,0.00018204,2]
[346962010,1735432247517,-500.0,0.00018204,2]
[346962011,1735432247526,-500.0,0.00018204,2]
[346962012,1735432247535,-500.0,0.00018204,2]
[346962013,1735432247545,-500.0,0.00018204,2]
[346962014,1735432247555,-500.0,0.00018204,2]
[346962015,1735432247564,-500.0,0.00018204,2]
[346962016,1735432247575,-500.0,0.00018204,2]
[346962017,1735432247584,-500.0,0.00018204,2]
[346962018,1735432247594,-500.0,0.00018204,2]
[346962019,1735432247603,-500.0,0.00018204,2]
[346962020,1735432247613,-500.0,0.00018204,2]
[346962021,1735432247622,-500.0,0.00018204,2]
[346962022,1735432247632,-500.0,0.00018204,2]
[346962023,1735432247641,-500.0,0.00018204,2]
[346962024,1735432247651,-500.0,0.00018204,2]
[346962025,1735432247660,-500.0,0.00018204,2]
[346962026,1735432247670,-1750.11,0.00018204,2]
[346962027,1735432247680,-500.0,0.00018204,2]
[346962028,1735432247690,-623.58,0.00018204,2]
[346962029,1735432247704,-500.0,0.00018204,2]
[346962030,1735432247713,-500.0,0.00018204,2]
[346962031,1735432247723,-905.68,0.00018204,2]
[346962032,1735432247732,-500.0,0.00018204,2]
[346962033,1735432247742,-500.0,0.00018204,2]
[346962034,1735432247752,-571.76,0.00018204,2]
[346962035,1735432247761,-13718.69,0.00018204,2]
[346962036,1735432247773,-500.0,0.00018204,2]
[346962037,1735432247782,-500.0,0.00018204,2]
[346962038,1735432247792,-500.0,0.00018204,2]
[346962039,1735432247804,-500.0,0.00018204,2]
[346962040,1735432247814,-500.0,0.00018204,2]
[346962041,1735432247824,-1088.92,0.00018204,2]
[346962042,1735432247835,-500.0,0.00018204,2]
[346962043,1735432247844,-500.0,0.00018204,2]
[346962044,1735432247854,-500.0,0.00018204,2]
[346962045,1735432247865,-500.0,0.00018204,2]
[346962046,1735432247875,-500.0,0.00018204,2]
[346962047,1735432247884,-500.0,0.00018204,2]
[346962048,1735432247894,-500.0,0.00018204,2]
[346962049,1735432247903,-500.0,0.00018205,2]
[346962050,1735432247913,-500.0,0.00018205,2]
[346962051,1735432247923,-500.0,0.00018205,2]
[346962052,1735432247932,-500.0,0.00018205,2]
[346962053,1735432247941,-571.89,0.00018205,2]
[346962054,1735432247951,-291.95,0.00018205,2]
[346962055,1735432247965,-500.0,0.00018205,2]
[346962056,1735432247974,-582.11959429,0.00018205,2]
[346962057,1735432247983,-500.0,0.00018205,2]
[346962058,1735432247993,-500.0,0.00018205,2]
[346962059,1735432248002,-500.0,0.00018205,2]
[346962060,1735432248012,-500.0,0.00018205,2]
[346962061,1735432248022,-500.0,0.00018205,2]
[346962062,1735432248032,-500.0,0.00018205,2]
[346962063,1735432248042,-500.0,0.00018205,2]
[346962064,1735432248052,-500.0,0.00018205,2]
[346962065,1735432248062,-500.0,0.00018205,2]
[346962066,1735432248071,-500.0,0.00018205,2]
[346962067,1735432248080,-500.0,0.00018205,2]
[346962068,1735432248090,-500.0,0.00018205,2]
[346962069,1735432248101,-500.0,0.00018205,2]
[346962070,1735432248110,-565.18,0.00018205,2]
[346962071,1735432248120,-727.14,0.00018205,2]
[346962072,1735432248130,-500.0,0.00018205,2]
[346962073,1735432248140,-500.0,0.00018205,2]
[346962074,1735432248150,-500.0,0.00018206,2]
[346962075,1735432248159,-500.0,0.00018206,2]
[346962076,1735432248169,-431.45048861,0.00018206,2]
[346962077,1735432248179,-500.0,0.00018207,2]
[346962078,1735432248188,-4644.52,0.00018207,2]
[346962079,1735432248198,-711.69,0.00018207,2]
[346962080,1735432248210,-500.0,0.00018207,2]
[346962081,1735432248220,-4066.47,0.00018207,2]
[346962082,1735432248230,-1036.38138873,0.00018348,2]
[346962083,1735432248240,-371.50606176,0.00018421,2]
[346962084,1735432248250,-500.0,0.00018478,2]
[346962085,1735432248259,-557.90761671,0.00018478,2]
[346962086,1735432248269,-500.0,0.00018478,2]
[346962087,1735432248279,-500.0,0.00018478,2]
[346962088,1735432248355,-209.08,0.00018478,2]
[346962089,1735432248375,-500.0,0.00018478,2]
[346962090,1735432248386,-500.0,0.00018478,2]
[346962091,1735432248395,-500.0,0.00018478,2]
[346962092,1735432248405,-500.0,0.00018478,2]
[346962093,1735432248416,-500.0,0.00018478,2]
[346962094,1735432248426,-500.0,0.00018478,2]
[346962095,1735432248435,-500.0,0.00018478,2]
[346962096,1735432248446,-500.0,0.00018478,2]
[346962097,1735432248458,-500.0,0.00018478,2]
[346962098,1735432248468,-500.0,0.00018478,2]
[346962099,1735432248478,-500.0,0.00018478,2]
[346962100,1735432248487,-500.0,0.00018478,2]
[346962101,1735432248498,-500.0,0.00018478,2]
[346962102,1735432248507,-1750.11,0.00018478,2]
[346962103,1735432248516,-500.0,0.00018478,2]
[346962104,1735432248526,-500.0,0.00018478,2]
[346962105,1735432248535,-500.0,0.00018478,2]
[346962106,1735432248545,-905.68,0.00018478,2]
[346962107,1735432248555,-500.0,0.00018478,2]
[346962108,1735432248565,-500.0,0.00018478,2]
[346962109,1735432248574,-571.76,0.00018478,2]
[346962110,1735432248584,-13718.69,0.00018478,2]
[346962111,1735432248594,-500.0,0.00018478,2]
[346962112,1735432248603,-500.0,0.00018478,2]
[346962113,1735432248613,-500.0,0.00018478,2]
[346962114,1735432248623,-500.0,0.00018478,2]
[346962115,1735432248632,-500.0,0.00018478,2]
[346962116,1735432248641,-1088.92,0.00018478,2]
[346962117,1735432248651,-500.0,0.00018478,2]
[346962118,1735432248660,-500.0,0.00018478,2]
[346962119,1735432248670,-500.0,0.00018478,2]
[346962120,1735432248681,-500.0,0.00018478,2]
[346962121,1735432248691,-500.0,0.00018478,2]
[346962122,1735432248704,-500.0,0.00018478,2]
[346962123,1735432248713,-500.0,0.00018478,2]
[346962124,1735432248723,-500.0,0.00018479,2]
[346962125,1735432248734,-500.0,0.00018479,2]
[346962126,1735432248744,-500.0,0.00018479,2]
[346962127,1735432248753,-500.0,0.00018479,2]
[346962128,1735432248762,-500.0,0.00018479,2]
[346962129,1735432248772,-500.0,0.00018479,2]
[346962130,1735432248783,-500.0,0.00018479,2]
[346962131,1735432248793,-500.0,0.00018479,2]
[346962132,1735432248802,-500.0,0.00018479,2]
[346962133,1735432248812,-500.0,0.00018479,2]
[346962134,1735432248821,-500.0,0.00018479,2]
[346962135,1735432248830,-500.0,0.00018479,2]
[346962136,1735432248840,-500.0,0.00018479,2]
[346962137,1735432248849,-350.25815674,0.00018479,2]
[346962138,1735432248859,-500.0,0.00018479,2]
[346962139,1735432248869,-500.0,0.00018479,2]
[346962140,1735432248878,-500.0,0.00018479,2]
[346962141,1735432248887,-337.39,0.00018479,2]
[346962142,1735432248898,-565.18,0.00018479,2]
[346962143,1735432248907,-727.14,0.00018479,2]
[346962144,1735432248918,-500.0,0.00018479,2]
[346962145,1735432248927,-500.0,0.00018479,2]
[346962146,1735432248937,-500.0,0.0001848,2]
[346962147,1735432248947,-500.0,0.0001848,2]
[346962148,1735432248958,-150.92,0.00018481,2]
[346962149,1735432248968,-4644.52,0.00018481,2]
[346962150,1735432248978,-711.69,0.00018481,2]
[346962151,1735432248987,-500.0,0.00018481,2]
[346962152,1735432248996,-4066.47,0.00018481,2]
[346962153,1735432249006,-500.0,0.00018649,2]
[346962154,1735432249015,-500.0,0.00018716,2]
[346962155,1735432249024,-500.0,0.00018716,2]
[346962156,1735432249033,-500.0,0.00018716,2]
[346962157,1735432249042,-500.0,0.00018716,2]
[346962158,1735432249052,-500.0,0.00018752,2]
[346962159,1735432249061,-500.0,0.00018752,2]
[346962160,1735432249071,-500.0,0.00018752,2]
[346962161,1735432249080,-500.0,0.00018752,2]
[346962162,1735432249089,-500.0,0.00018752,2]
[346962163,1735432249100,-500.0,0.00018752,2]
[346962164,1735432249109,-500.0,0.00018752,2]
[346962165,1735432249119,-500.0,0.00018752,2]
[346962166,1735432249128,-500.0,0.00018752,2]
[346962167,1735432249138,-500.0,0.00018752,2]
[346962168,1735432249147,-500.0,0.00018752,2]
[346962169,1735432249157,-500.0,0.00018752,2]
[346962170,1735432249167,-500.0,0.00018752,2]
[346962171,1735432249176,-500.0,0.00018752,2]
[346962172,1735432249186,-500.0,0.00018752,2]
[346962173,1735432249195,-500.0,0.00018752,2]
[346962174,1735432249206,-1750.11,0.00018752,2]
[346962175,1735432249215,-500.0,0.00018752,2]
[346962176,1735432249224,-500.0,0.00018752,2]
[346962177,1735432249233,-500.0,0.00018752,2]
[346962178,1735432249243,-905.68,0.00018752,2]
[346962179,1735432249253,-589.83,0.00018752,2]
[346962180,1735432249263,-500.0,0.00018752,2]
[346962181,1735432249273,-571.76,0.00018752,2]
[346962182,1735432249283,-13718.69,0.00018752,2]
[346962183,1735432249292,-500.0,0.00018752,2]
[346962184,1735432249302,-500.0,0.00018752,2]
[346962185,1735432249312,-500.0,0.00018752,2]
[346962186,1735432249322,-500.0,0.00018752,2]
[346962187,1735432249331,-500.0,0.00018752,2]
[346962188,1735432249341,-1088.92,0.00018752,2]
[346962189,1735432249351,-500.0,0.00018752,2]
[346962190,1735432249360,-500.0,0.00018752,2]
[346962191,1735432249369,-500.0,0.00018752,2]
[346962192,1735432249379,-500.0,0.00018752,2]
[346962193,1735432249388,-500.0,0.00018752,2]
[346962194,1735432249398,-500.0,0.00018752,2]
[346962195,1735432249410,-500.0,0.00018752,2]
[346962196,1735432249420,-500.0,0.00018753,2]
[346962197,1735432249430,-500.0,0.00018753,2]
[346962198,1735432249440,-500.0,0.00018753,2]
[346962199,1735432249450,-500.0,0.00018753,2]
[346962200,1735432249462,-500.0,0.00018753,2]
[346962201,1735432249472,-533.17125029,0.00018753,2]
[346962202,1735432249483,-500.0,0.00018753,2]
[346962203,1735432249493,-500.0,0.00018753,2]
[346962204,1735432249504,-500.0,0.00018753,2]
[346962205,1735432249515,-500.0,0.00018753,2]
[346962206,1735432249525,-500.0,0.00018753,2]
[346962207,1735432249535,-500.0,0.00018753,2]
[346962208,1735432249545,-500.0,0.00018753,2]
[346962209,1735432249554,-500.0,0.00018753,2]
[346962210,1735432249564,-500.0,0.00018753,2]
[346962211,1735432249573,-565.18,0.00018753,2]
[346962212,1735432249583,-727.14,0.00018753,2]
[346962213,1735432249593,-500.0,0.00018753,2]
[346962214,1735432249602,-500.0,0.00018753,2]
[346962215,1735432249611,-151.0,0.00018754,2]
[346962216,1735432249621,-500.0,0.00018754,2]
[346962217,1735432249631,-295.704046,0.00018754,2]
[346962218,1735432249640,-295.704046,0.00018754,2]
[346962219,1735432249650,-151.0,0.00018754,2]
[346962220,1735432249659,-480.267624,0.00018754,2]
[346962221,1735432249669,-480.267624,0.00018754,2]
[346962222,1735432249679,-500.0,0.00018754,2]
[346962223,1735432249690,-151.0,0.00018754,2]
[346962224,1735432249703,-151.0,0.00018754,2]
[346962225,1735432249712,-151.0,0.00018755,2]
[346962226,1735432249722,-4644.52,0.00018755,2]
[346962227,1735432249733,-711.69,0.00018755,2]
[346962228,1735432249743,-500.0,0.00018755,2]
[346962229,1735432249752,-4066.47,0.00018755,2]
[346962230,1735432249762,-151.0,0.00018755,2]
[346962231,1735432249773,-203.378584,0.00018755,2]
[346962232,1735432249783,-151.0,0.00018755,2]
[346962233,1735432249792,-203.378584,0.00018755,2]
[346962234,1735432249801,-151.0,0.00018755,2]
[346962235,1735432249810,-151.0,0.00018755,2]
[346962236,1735432249819,-151.0,0.00018755,2]
[346962237,1735432249828,-229.306436,0.00018758,2]
[346962238,1735432249838,-229.306436,0.00018758,2]
[346962239,1735432249847,-151.0,0.00018758,2]
[346962240,1735432249856,-733.077576,0.00018758,2]
[346962241,1735432249865,-151.0,0.00018758,2]
[346962242,1735432249875,-151.0,0.00018758,2]
[346962243,1735432249884,-733.077576,0.00018758,2]
[346962244,1735432249894,-371.50606176,0.00018853,2]
[346962245,1735432249903,-1036.38138873,0.00018866,2]
[346962246,1735432249912,-151.0,0.000189,2]
[346962247,1735432249922,-187.614738,0.000189,2]
[346962248,1735432249931,-578.112,0.00019,2]
[346962249,1735432249940,-428.4656794,0.00019014,2]
[346962250,1735432249949,-500.0,0.00019026,2]
[346962251,1735432249959,-500.0,0.00019026,2]
[346962252,1735432249968,-500.0,0.00019026,2]
[346962253,1735432249978,-151.0,0.00019026,2]
[346962254,1735432249987,-151.0,0.00019026,2]
[346962255,1735432249996,-500.0,0.00019026,2]
[346962256,1735432250006,-500.0,0.00019026,2]
[346962257,1735432250015,-500.0,0.00019026,2]
[346962258,1735432250024,-500.0,0.00019026,2]
[346962259,1735432250033,-500.0,0.00019026,2]
[346962260,1735432250042,-500.0,0.00019026,2]
[346962261,1735432250051,-500.0,0.00019026,2]
[346962262,1735432250060,-448.69,0.00019026,2]
[346962263,1735432250070,-500.0,0.00019026,2]
[346962264,1735432250079,-500.0,0.00019026,2]
[346962265,1735432250088,-500.0,0.00019026,2]
[346962266,1735432250098,-500.0,0.00019026,2]
[346962267,1735432250108,-151.0,0.00019026,2]
[346962268,1735432250117,-151.0,0.00019026,2]
[346962269,1735432250126,-500.0,0.00019026,2]
[346962270,1735432250135,-1750.11,0.00019026,2]
[346962271,1735432250145,-500.0,0.00019026,2]
[346962272,1735432250154,-500.0,0.00019026,2]
[346962273,1735432250163,-213.4733179,0.00019026,2]
[346962274,1735432250173,-905.68,0.00019026,2]
[346962275,1735432250183,-500.0,0.00019026,2]
[346962276,1735432250192,-571.76,0.00019026,2]
[346962277,1735432250201,-13718.69,0.00019026,2]
[346962278,1735432250213,-500.0,0.00019026,2]
[346962279,1735432250226,-500.0,0.00019026,2]
[346962280,1735432250235,-500.0,0.00019026,2]
[346962281,1735432250245,-500.0,0.00019026,2]
[346962282,1735432250254,-500.0,0.00019026,2]
[346962283,1735432250263,-1088.92,0.00019026,2]
[346962284,1735432250273,-500.0,0.00019026,2]
[346962285,1735432250283,-500.0,0.00019026,2]
[346962286,1735432250292,-500.0,0.00019026,2]
[346962287,1735432250302,-500.0,0.00019026,2]
[346962288,1735432250311,-500.0,0.00019026,2]
[346962289,1735432250321,-500.0,0.00019026,2]
[346962290,1735432250330,-500.0,0.00019026,2]
[346962291,1735432250339,-500.0,0.00019027,2]
[346962292,1735432250348,-500.0,0.00019027,2]
[346962293,1735432250358,-500.0,0.00019027,2]
[346962294,1735432250367,-500.0,0.00019027,2]
[346962295,1735432250376,-500.0,0.00019027,2]
[346962296,1735432250386,-500.0,0.00019027,2]
[346962297,1735432250395,-500.0,0.00019027,2]
[346962298,1735432250406,-500.0,0.00019027,2]
[346962299,1735432250486,-500.0,0.00019027,2]
[346962300,1735432250504,-500.0,0.00019027,2]
[346962301,1735432250514,-500.0,0.00019027,2]
[346962302,1735432250524,-500.0,0.00019027,2]
[346962303,1735432250533,-500.0,0.00019027,2]
[346962304,1735432250543,-500.0,0.00019027,2]
[346962305,1735432250553,-565.18,0.00019027,2]
[346962306,1735432250562,-727.14,0.00019027,2]
[346962307,1735432250571,-500.0,0.00019027,2]
[346962308,1735432250581,-500.0,0.00019027,2]
[346962309,1735432250591,-500.0,0.00019028,2]
[346962310,1735432250601,-500.0,0.00019028,2]
[346962311,1735432250610,-4644.52,0.00019029,2]
[346962312,1735432250620,-711.69,0.00019029,2]
[346962313,1735432250629,-500.0,0.00019029,2]
[346962314,1735432250639,-4066.47,0.00019029,2]
[346962315,1735432250648,-151.0,0.00019032,2]
[346962316,1735432250658,-500.0,0.00019197,2]
[346962317,1735432250667,-1113.68146426,0.00019264,2]
[346962318,1735432250677,-500.0,0.00019264,2]
[346962319,1735432250687,-500.0,0.00019264,2]
[346962320,1735432250701,-151.0,0.00019264,2]
[346962321,1735432250711,-534.0,0.00019266,2]
[346962322,1735432250720,-371.50606176,0.00019285,2]
[346962323,1735432250730,-500.0,0.000193,2]